bitfinex/quotes_BTCUSD_20250213
["timestamp","ask_amount","ask_price","bid_price","bid_amount"]
[1739458343900,0.15632,95957.0,95956.0,0.0001065]
[1739458344202,0.16329724,95957.0,95956.0,0.0001065]
[1739458344407,0.16329724,95957.0,95956.0,0.0011065]
[1739458344646,0.00697724,95957.0,95956.0,0.0011065]
[1739458345480,0.00697724,95957.0,95956.0,0.0031065]
[1739458345747,0.00697724,95957.0,95956.0,0.0021065]
[1739458345949,0.00697724,95957.0,95956.0,0.0001065]
[1739458346225,0.156318,95958.0,95956.0,0.0001065]
[1739458346554,0.00702414,95957.0,95956.0,0.0001065]
[1739458346778,0.00702414,95957.0,95956.0,0.0031065]
[1739458347190,0.00702414,95957.0,95956.0,0.0001065]
[1739458347400,0.00702414,95957.0,95956.0,0.0031065]
[1739458347620,0.00022366,95969.0,95956.0,0.0051065]
[1739458347817,0.208402,95968.0,95956.0,0.0031065]
[1739458348032,0.208407,95966.0,95956.0,0.0031065]
[1739458348232,0.156312,95962.0,95956.0,0.0051065]
[1739458348435,0.156313,95961.0,95956.0,0.0051065]
[1739458348614,0.00703267,95965.0,95956.0,0.0031065]
[1739458348753,0.00703889,95961.0,95957.0,0.156319]
[1739458348952,0.00122366,95969.0,95956.0,0.0001065]
[1739458349156,0.00703889,95960.0,95956.0,0.0031065]
[1739458349380,0.156314,95961.0,95956.0,0.0031065]
[1739458349664,0.16335353,95960.0,95956.0,0.0001065]
[1739458349863,0.00703853,95960.0,95959.0,0.156316]
[1739458350078,0.00122366,95969.0,95968.0,0.156302]
[1739458350470,0.00122366,95969.0,95968.0,0.455502]
[1739458350824,0.00122366,95969.0,95968.0,0.48794409]
[1739458351021,0.08027759,95988.0,95987.0,0.156271]
[1739458351222,0.08621122,95988.0,95987.0,0.156271]
[1739458351431,0.08621122,95988.0,95972.0,0.208394]
[1739458351642,0.08027759,95988.0,95987.0,0.156271]
[1739458351855,0.08027759,95988.0,95983.0,0.208368]
[1739458352191,0.156279,95982.0,95968.0,0.13594328]
[1739458352394,0.156276,95984.0,95983.0,0.00043983]
[1739458352957,0.156276,95984.0,95983.0,0.00543983]
[1739458353161,0.156276,95984.0,95983.0,0.01143983]
[1739458353534,0.156276,95984.0,95983.0,0.00543983]
[1739458353801,0.0499,95994.0,95983.0,0.01243983]
[1739458354003,0.156276,95984.0,95983.0,0.01243983]
[1739458354145,0.156276,95984.0,95983.0,0.00743983]
[1739458354568,0.208342,95996.0,95983.0,0.00743983]
[1739458354569,0.5892,96008.0,95983.0,0.11694348]
[1739458354750,0.0786,96007.0,95983.0,0.11694348]
[1739458354953,0.0001065,96011.0,95999.0,0.156251]
[1739458355195,0.0001065,96011.0,95991.0,0.208351]
[1739458355421,0.0001065,96011.0,95983.0,0.01143983]
[1739458355422,0.156259,95994.0,95983.0,0.01143983]
[1739458355570,0.208322,96006.0,95983.0,0.01143983]
[1739458355571,0.208322,96006.0,95986.0,0.156272]
[1739458355807,0.156255,95997.0,95989.0,0.156266]
[1739458356015,0.156256,95996.0,95983.0,0.10294348]
[1739458356291,0.156252,95999.0,95991.0,0.156263]
[1739458356469,0.208337,95998.0,95983.0,0.10294348]
[1739458356685,0.005,96000.0,95983.0,0.00043983]
[1739458356884,0.156276,95984.0,95983.0,0.00043983]
[1739458358005,0.16229028,95984.0,95983.0,0.00043983]
[1739458358546,0.16229028,95984.0,95983.0,0.00443983]
[1739458359546,0.48979393,95984.0,95983.0,0.00443983]
[1739458359753,0.55859393,95984.0,95983.0,0.00443983]
[1739458359955,0.55859393,95984.0,95983.0,0.00843983]
[1739458360356,0.55859393,95984.0,95983.0,0.00443983]
[1739458360559,0.55859393,95984.0,95983.0,0.00043983]
[1739458360913,0.56459393,95984.0,95983.0,0.00143983]
[1739458361119,0.56459393,95984.0,95983.0,0.00043983]
[1739458361546,0.57059393,95984.0,95983.0,0.00143983]
[1739458362878,0.57059393,95984.0,95983.0,0.00243983]
[1739458363236,0.54759393,95984.0,95983.0,0.00243983]
[1739458364287,0.55859393,95984.0,95983.0,0.00143983]
[1739458364517,1.42479393,95984.0,95983.0,0.00143983]
[1739458364717,1.40179393,95984.0,95983.0,0.00143983]
[1739458364920,1.17449028,95984.0,95983.0,0.00043983]
[1739458365129,1.01821428,95984.0,95983.0,0.00043983]
[1739458365285,0.01001428,95984.0,95983.0,0.00143983]
[1739458365484,0.156268,95989.0,95983.0,0.00143983]
[1739458365694,0.005937,95984.0,95983.0,0.15671683]
[1739458365900,0.005,96000.0,95983.0,0.00043983]
[1739458366106,0.005937,95984.0,95983.0,0.00043983]
[1739458366331,0.156275,95985.0,95983.0,0.00043983]
[1739458366541,0.005937,95984.0,95983.0,0.00043983]
[1739458366739,0.156272,95987.0,95983.0,0.00043983]
[1739458366942,0.005,96000.0,95983.0,0.00743983]
[1739458366943,0.162213,95984.0,95983.0,0.00743983]
[1739458367168,0.159276,95984.0,95983.0,0.00743983]
[1739458367393,0.005937,95984.0,95983.0,0.00743983]
[1739458367752,0.156264,95992.0,95984.0,0.156276]
[1739458367950,0.162213,95984.0,95983.0,0.00743983]
[1739458368149,0.156276,95984.0,95983.0,0.00743983]
[1739458368398,0.162213,95984.0,95983.0,0.01243983]
[1739458368532,0.162213,95984.0,95983.0,0.00043983]
[1739458368751,0.005937,95984.0,95983.0,0.00043983]
[1739458368953,0.005937,95984.0,95983.0,0.00543983]
[1739458369376,0.00022366,95988.0,95983.0,0.00043983]
[1739458369632,0.005937,95984.0,95983.0,0.00043983]
[1739458369805,0.00022366,95988.0,95983.0,0.00543983]
[1739458370209,0.005937,95987.0,95983.0,0.00543983]
[1739458370436,0.156273,95986.0,95983.0,0.00543983]
[1739458370650,0.16221,95986.0,95983.0,0.00543983]
[1739458370861,0.16221,95986.0,95983.0,0.00043983]
[1739458371060,0.16221,95986.0,95983.0,0.00443983]
[1739458371393,0.156275,95985.0,95983.0,0.00043983]
[1739458371540,0.005937,95986.0,95983.0,0.00043983]
[1739458371748,0.00022366,95988.0,95983.0,0.00343983]
[1739458372074,0.156272,95987.0,95983.0,0.00643983]
[1739458372244,0.00022366,95988.0,95983.0,0.00643983]
[1739458372448,0.00604825,95987.0,95986.0,0.156272]
[1739458372649,0.00022366,95988.0,95983.0,0.21180983]
[1739458372650,0.00022366,95988.0,95987.0,0.156271]
[1739458373032,0.00022366,95988.0,95983.0,0.00643983]
[1739458373235,0.208362,95987.0,95983.0,0.00643983]
[1739458373452,0.156276,95984.0,95983.0,0.00343983]
[1739458373649,0.00604843,95986.0,95983.0,0.00043983]
[1739458373848,0.00605231,95984.0,95983.0,0.00043983]
[1739458374055,0.156274,95985.0,95983.0,0.00043983]
[1739458374255,0.00605195,95984.0,95983.0,0.00043983]
[1739458374452,0.00605195,95984.0,95983.0,0.00243983]
[1739458374683,0.00605195,95984.0,95983.0,0.00043983]
[1739458375080,0.16232795,95984.0,95983.0,0.00543983]
[1739458375581,0.21042795,95984.0,95983.0,0.00543983]
[1739458377032,0.21042795,95984.0,95983.0,0.00743983]
[1739458377186,0.21042795,95984.0,95983.0,0.00243983]
[1739458377411,0.00605195,95984.0,95983.0,0.00243983]
[1739458377620,0.16232795,95984.0,95983.0,0.00443983]
[1739458377821,0.156276,95984.0,95983.0,0.00443983]
[1739458378019,0.1622893,95984.0,95983.0,0.00443983]
[1739458378448,0.1622893,95984.0,95983.0,0.00243983]
[1739458378865,0.26479295,95984.0,95983.0,0.00543983]
[1739458379095,0.34179295,95984.0,95983.0,0.00543983]
[1739458379290,0.34179295,95984.0,95983.0,0.00243983]
[1739458380101,0.34179295,95984.0,95983.0,0.00254633]
[1739458380669,0.0830133,95984.0,95983.0,0.00454633]
[1739458380888,0.0060133,95984.0,95983.0,0.00454633]
[1739458381097,0.0060133,95984.0,95983.0,0.15882333]
[1739458381305,0.00022366,95988.0,95987.0,0.156271]
[1739458381950,0.00022366,95988.0,95987.0,0.25877465]
[1739458382403,0.00022366,95994.0,95993.0,0.156261]
[1739458382610,0.00022366,95994.0,95993.0,0.15730247]
[1739458383001,0.00022366,95994.0,95993.0,0.156261]
[1739458384298,0.00022366,95994.0,95993.0,0.163261]
[1739458384702,0.00022366,95994.0,95993.0,0.27276465]
[1739458384913,0.00022366,95994.0,95993.0,0.26576465]
[1739458385123,0.0834999,96024.0,95993.0,0.10950365]
[1739458385310,0.0834999,96012.0,95993.0,0.10950365]
[1739458385450,0.10250365,96023.0,95993.0,0.007]
[1739458385451,0.00611524,95994.0,95993.0,0.007]
[1739458385651,0.156259,95995.0,95993.0,0.014]
[1739458385862,0.00612027,95994.0,95993.0,0.014]
[1739458386100,0.00612027,95994.0,95993.0,0.007]
[1739458386311,0.156256,95996.0,95993.0,0.007]
[1739458386504,0.00612027,95994.0,95993.0,0.014]
[1739458386705,0.156258,95995.0,95993.0,0.014]
[1739458387099,0.079,96001.0,95972.0,0.00972738]
[1739458387274,0.00612027,95994.0,95993.0,0.007]
[1739458387620,0.079,96001.0,95992.0,0.00924]
[1739458387819,0.00608218,95994.0,95993.0,0.005]
[1739458388018,0.079,96001.0,95993.0,0.005]
[1739458388019,0.156258,95995.0,95993.0,0.005]
[1739458388219,0.00608218,95994.0,95983.0,0.15682233]
[1739458388425,0.208348,95993.0,95983.0,0.00054633]
[1739458388671,0.156276,95984.0,95983.0,0.00054633]
[1739458389069,0.16235829,95984.0,95983.0,0.00054633]
[1739458389672,0.16235829,95984.0,95983.0,0.00754633]
[1739458390298,0.16235829,95984.0,95983.0,0.00054633]
[1739458390510,0.16235829,95984.0,95983.0,0.00654633]
[1739458391461,0.16235829,95984.0,95983.0,0.01154633]
[1739458391587,0.16235829,95984.0,95983.0,0.00654633]
[1739458392137,0.16235829,95984.0,95983.0,0.00754633]
[1739458392353,0.16235829,95984.0,95983.0,0.00154633]
[1739458393151,0.51746194,95984.0,95983.0,0.00154633]
[1739458393709,0.56426194,95984.0,95983.0,0.00154633]
[1739458393908,0.4327,95969.0,95957.0,0.00972738]
[1739458394108,0.55820365,95969.0,95957.0,0.00972738]
[1739458394304,0.56415186,95969.0,95945.0,0.0834999]
[1739458396129,0.56515186,95969.0,95968.0,0.0011065]
[1739458396514,0.56415186,95969.0,95968.0,0.0001065]
[1739458396714,0.57115186,95969.0,95968.0,0.0021065]
[1739458397151,1.10715186,95969.0,95968.0,0.0011065]
[1739458397359,1.11215186,95969.0,95968.0,0.0011065]
[1739458397539,1.11315186,95969.0,95968.0,0.0021065]
[1739458397739,0.56515186,95969.0,95968.0,0.0011065]
[1739458397939,0.57015186,95969.0,95968.0,0.0011065]
[1739458398275,0.56515186,95969.0,95968.0,0.0011065]
[1739458398485,0.54215186,95969.0,95968.0,0.0011065]
[1739458398661,0.44464821,95969.0,95968.0,0.0011065]
[1739458398889,0.44364821,95969.0,95968.0,0.0001065]
[1739458399292,0.44464821,95969.0,95968.0,0.0001065]
[1739458399496,0.31824821,95969.0,95968.0,0.0001065]
[1739458399787,0.31724821,95969.0,95968.0,0.0001065]
[1739458400028,0.31824821,95969.0,95968.0,0.0001065]
[1739458400352,0.31324821,95969.0,95968.0,0.0001065]
[1739458400558,0.00994821,95969.0,95968.0,0.0001065]
[1739458400758,0.004,95969.0,95968.0,0.0001065]
[1739458400990,0.00588316,95969.0,95968.0,0.0001065]
[1739458401298,0.001,95969.0,95968.0,0.0001065]
[1739458401497,0.0059292,95969.0,95968.0,0.1564085]
[1739458401706,5.489e-05,95984.0,95968.0,0.1564085]
[1739458401707,5.489e-05,95984.0,95979.0,0.156284]
[1739458401908,5.489e-05,95984.0,95969.0,0.1563]
[1739458402092,0.0059292,95983.0,95976.0,0.156287]
[1739458402320,0.156281,95981.0,95970.0,0.208398]
[1739458402519,0.00595753,95980.0,95976.0,0.156288]
[1739458402721,5.489e-05,95984.0,95968.0,0.0031065]
[1739458402923,0.00598872,95983.0,95969.0,0.10250365]
[1739458403126,0.15733089,95984.0,95975.0,0.156289]
[1739458403325,0.21435966,95983.0,95969.0,0.10250365]
[1739458403587,0.00598966,95983.0,95971.0,0.208394]
[1739458403992,0.00598966,95983.0,95976.0,0.156287]
[1739458404200,0.00598966,95983.0,95977.0,0.10250365]
[1739458404397,0.00598966,95983.0,95977.0,0.31088465]
[1739458404624,0.00621332,95983.0,95982.0,0.156279]
[1739458405008,0.00022366,95983.0,95982.0,0.156279]
[1739458405195,0.00022366,95983.0,95982.0,0.25878265]
[1739458406795,0.00022366,95983.0,95982.0,0.26578265]
[1739458407768,0.00022366,95983.0,95982.0,0.27278265]
[1739458407994,0.00022366,95983.0,95982.0,0.26578265]
[1739458408170,0.00022366,95983.0,95982.0,0.25878265]
[1739458408369,5.489e-05,95984.0,95983.0,0.156277]
[1739458408571,5.489e-05,95984.0,95983.0,0.2598222]
[1739458408777,5.489e-05,95984.0,95983.0,0.25878065]
[1739458410196,5.489e-05,95984.0,95983.0,0.26578065]
[1739458411112,5.489e-05,95984.0,95983.0,0.27278065]
[1739458411314,5.489e-05,95984.0,95983.0,0.25878065]
[1739458411725,5.489e-05,95984.0,95983.0,0.27278065]
[1739458411954,5.489e-05,95984.0,95983.0,0.26578065]
[1739458412074,5.489e-05,95984.0,95983.0,0.25878065]
[1739458412452,5.489e-05,95984.0,95983.0,0.11650365]
[1739458412665,5.489e-05,95984.0,95983.0,0.007]
[1739458412816,5.489e-05,95984.0,95974.0,0.09329263]
[1739458413407,5.489e-05,95984.0,95983.0,0.007]
[1739458413608,0.00610705,95984.0,95983.0,0.007]
[1739458413802,5.489e-05,95984.0,95983.0,0.007]
[1739458413925,0.00610705,95984.0,95983.0,0.007]
[1739458414322,0.15633089,95984.0,95983.0,0.007]
[1739458414526,0.16238305,95984.0,95983.0,0.007]
[1739458414756,0.00610705,95984.0,95977.0,0.156287]
[1739458414954,0.16238305,95984.0,95983.0,0.004]
[1739458415371,0.16238305,95984.0,95969.0,0.09329263]
[1739458415372,0.156279,95983.0,95973.0,0.156293]
[1739458415575,5.489e-05,95984.0,95983.0,0.007]
[1739458415788,0.15633089,95984.0,95983.0,0.012]
[1739458415987,0.15633089,95984.0,95973.0,0.156293]
[1739458416185,0.15633089,95984.0,95969.0,0.09329263]
[1739458416186,0.156288,95977.0,95969.0,0.09329263]
[1739458416424,0.15633089,95984.0,95983.0,0.004]
[1739458416622,0.15633089,95984.0,95983.0,0.0041065]
[1739458416869,0.15655455,95984.0,95983.0,0.0041065]
[1739458417400,0.15655455,95984.0,95983.0,0.0071065]
[1739458417820,0.16257071,95984.0,95983.0,0.0071065]
[1739458418314,0.16257071,95984.0,95983.0,0.0031065]
[1739458418543,0.17767842,95984.0,95983.0,0.0031065]
[1739458418700,0.26087842,95984.0,95983.0,0.0031065]
[1739458418912,0.45827842,95984.0,95983.0,0.0031065]
[1739458419113,0.45827842,95984.0,95983.0,0.0001065]
[1739458419518,0.56078207,95984.0,95983.0,0.0021065]
[1739458419729,0.58378207,95984.0,95983.0,0.0021065]
[1739458420363,1.16241754,95984.0,95983.0,0.0041065]
[1739458420569,0.3293,95969.0,95968.0,5e-07]
[1739458420811,0.56327158,95969.0,95968.0,5e-07]
[1739458421785,0.56427158,95969.0,95968.0,5e-07]
[1739458421988,0.56327158,95969.0,95968.0,5e-07]
[1739458422445,0.56427158,95969.0,95968.0,0.0010005]
[1739458422627,0.56527158,95969.0,95968.0,0.0020005]
[1739458423028,0.54227158,95969.0,95968.0,0.0020005]
[1739458423229,0.13346793,95969.0,95968.0,0.0020005]
[1739458423437,0.28976793,95969.0,95968.0,0.0020005]
[1739458423757,0.28876793,95969.0,95968.0,0.0010005]
[1739458424374,0.29376793,95969.0,95968.0,0.0020005]
[1739458424526,0.16826793,95969.0,95968.0,0.0020005]
[1739458424723,0.16326793,95969.0,95968.0,0.0010005]
[1739458424951,0.16626793,95969.0,95968.0,0.0010005]
[1739458425571,0.00996793,95969.0,95968.0,0.0010005]
[1739458425775,0.00696793,95969.0,95968.0,0.0010005]
[1739458426128,0.16326793,95969.0,95968.0,0.0010005]
[1739458427198,0.17026793,95969.0,95968.0,0.0010005]
[1739458427399,0.17726793,95969.0,95968.0,0.0010005]
[1739458427605,0.17426793,95969.0,95968.0,0.0010005]
[1739458427820,0.17426793,95969.0,95968.0,0.0020005]
[1739458428019,0.16226793,95969.0,95968.0,0.0010005]
[1739458428175,0.26477158,95969.0,95968.0,0.0010005]
[1739458428376,0.41477158,95969.0,95968.0,0.0010005]
[1739458428977,0.43777158,95969.0,95968.0,5e-07]
[1739458429171,1.10797158,95969.0,95968.0,5e-07]
[1739458429582,1.11097158,95969.0,95968.0,5e-07]
[1739458430401,0.56897158,95969.0,95968.0,5e-07]
[1739458430625,0.57197158,95969.0,95968.0,5e-07]
[1739458430871,0.56597158,95969.0,95968.0,5e-07]
[1739458431078,0.56897158,95969.0,95968.0,5e-07]
[1739458431281,0.57197158,95969.0,95968.0,5e-07]
[1739458431515,0.56897158,95969.0,95968.0,5e-07]
[1739458431696,0.56597158,95969.0,95968.0,5e-07]
[1739458431897,1.11097158,95969.0,95968.0,5e-07]
[1739458432096,1.11397158,95969.0,95968.0,5e-07]
[1739458432504,1.11097158,95969.0,95968.0,5e-07]
[1739458432683,1.11397158,95969.0,95968.0,5e-07]
[1739458433891,0.56897158,95969.0,95968.0,5e-07]
[1739458434305,0.57197158,95969.0,95968.0,5e-07]
[1739458434864,1.11397158,95969.0,95968.0,5e-07]
[1739458436312,0.16826793,95969.0,95968.0,5e-07]
[1739458436959,0.16526793,95969.0,95968.0,5e-07]
[1739458437328,0.16826793,95969.0,95968.0,5e-07]
[1739458437530,0.16226793,95969.0,95968.0,5e-07]
[1739458438324,0.00896793,95969.0,95968.0,5e-07]
[1739458438525,0.00896793,95969.0,95968.0,0.1563025]
[1739458438889,0.00027855,95984.0,95968.0,5e-07]
[1739458439127,0.208378,95980.0,95968.0,0.0010005]
[1739458439336,0.156285,95979.0,95969.0,0.1563]
[1739458439464,0.15,95982.0,95968.0,0.0010005]
[1739458439675,0.00577746,95978.0,95968.0,0.0010005]
[1739458439880,0.30628,95982.0,95972.0,0.156295]
[1739458440106,0.00577746,95977.0,95972.0,0.156295]
[1739458440310,0.00027855,95984.0,95973.0,0.10250365]
[1739458440532,0.00577746,95976.0,95975.0,0.15629]
[1739458440680,0.00027855,95984.0,95983.0,0.156277]
[1739458441304,0.00027855,95984.0,95983.0,0.25878065]
[1739458441520,0.00027855,95984.0,95973.0,0.007]
[1739458441727,0.21903457,95983.0,95973.0,0.007]
[1739458441939,0.21903457,95983.0,95968.0,5e-07]
[1739458441940,0.1563,95969.0,95968.0,5e-07]
[1739458442154,0.00027855,95984.0,95968.0,5e-07]
[1739458442351,0.156294,95973.0,95968.0,5e-07]
[1739458442605,0.00597679,95983.0,95968.0,5e-07]
[1739458442808,0.1563,95969.0,95968.0,5e-07]
[1739458443208,0.16227679,95969.0,95968.0,5e-07]
[1739458443812,0.00597679,95969.0,95968.0,0.0090005]
[1739458444227,0.00597679,95969.0,95968.0,0.0070005]
[1739458444427,0.00597679,95969.0,95968.0,0.0040005]
[1739458444664,0.00597679,95969.0,95968.0,0.0090005]
[1739458445065,0.208386,95976.0,95968.0,0.0090005]
[1739458445248,0.156294,95973.0,95968.0,5e-07]
[1739458445445,0.156294,95973.0,95968.0,0.0050005]
[1739458445675,0.00027855,95984.0,95968.0,0.0050005]
[1739458445813,0.00594259,95972.0,95968.0,0.0050005]
[1739458446018,0.00027855,95984.0,95968.0,0.0050005]
[1739458446270,0.00594259,95983.0,95974.0,0.156292]
[1739458446470,0.00594259,95983.0,95968.0,0.0050005]
[1739458446671,0.00594259,95983.0,95969.0,0.00104188]
[1739458446897,0.00594259,95983.0,95974.0,0.156291]
[1739458447321,0.00594259,95983.0,95968.0,0.0030005]
[1739458447529,0.00594259,95983.0,95970.0,0.208398]
[1739458447733,0.00594259,95983.0,95969.0,0.10250365]
[1739458447734,0.00594259,95983.0,95971.0,0.10250365]
[1739458447933,0.00027855,95984.0,95983.0,0.156277]
[1739458448360,0.00027855,95984.0,95974.0,0.005]
[1739458448557,0.00027855,95984.0,95983.0,0.156277]
[1739458448766,0.00027855,95984.0,95981.0,0.156279]
[1739458448988,0.00027855,95984.0,95981.0,0.15628]
[1739458449197,0.00027855,95984.0,95983.0,0.156277]
[1739458449408,0.00027855,95984.0,95981.0,0.208372]
[1739458449610,0.00027855,95984.0,95982.0,0.156279]
[1739458450320,0.00027855,95984.0,95975.0,0.10250365]
[1739458450535,0.15655455,95984.0,95983.0,0.01]
[1739458450677,0.15655455,95984.0,95983.0,0.006]
[1739458450879,0.00027855,95984.0,95968.0,0.1563025]
[1739458451088,0.00027855,95984.0,95982.0,0.004]
[1739458451295,0.00027855,95984.0,95968.0,0.10250415]
[1739458451707,0.156282,95981.0,95970.0,0.156298]
[1739458451971,0.00027855,95984.0,95968.0,0.10250415]
[1739458452179,0.156298,95971.0,95968.0,5e-07]
[1739458452367,0.1563,95969.0,95968.0,5e-07]
[1739458453928,0.208392,95973.0,95968.0,5e-07]
[1739458453929,0.156294,95973.0,95968.0,5e-07]
[1739458454203,0.4418359,95999.0,95968.0,0.0070005]
[1739458454353,0.156295,95973.0,95968.0,0.0110005]
[1739458454561,0.156295,95973.0,95968.0,0.0040005]
[1739458454800,0.156295,95973.0,95968.0,0.0050005]
[1739458454996,0.208364,95986.0,95968.0,0.0050005]
[1739458454997,0.01377918,95986.0,95968.0,0.0050005]
[1739458455392,0.2331,95989.0,95968.0,5e-07]
[1739458455581,0.0831,95989.0,95969.0,0.10250365]
[1739458455777,0.0479,95995.0,95978.0,0.156284]
[1739458455975,0.208354,95991.0,95969.0,0.10250365]
[1739458456259,0.0479,95995.0,95969.0,0.10250365]
[1739458456459,0.256245,95995.0,95970.0,0.208398]
[1739458456681,0.156282,95981.0,95971.0,0.25879965]
[1739458456892,0.00027855,95984.0,95968.0,5e-07]
[1739458457099,0.00595604,95980.0,95971.0,0.156295]
[1739458457301,0.156282,95980.0,95969.0,0.371698]
[1739458457505,0.15628,95982.0,95970.0,0.156298]
[1739458457702,0.00596435,95979.0,95971.0,0.007]
[1739458457971,0.00596435,95978.0,95971.0,0.007]
[1739458458194,0.00027855,95984.0,95971.0,0.007]
[1739458458329,0.156295,95972.0,95971.0,0.007]
[1739458458715,0.2441559,95972.0,95971.0,0.007]
[1739458458916,0.3941559,95972.0,95971.0,0.007]
[1739458459277,0.15,95971.0,95970.0,0.006]
[1739458459477,0.306297,95971.0,95970.0,0.006]
[1739458459824,0.31222842,95971.0,95970.0,0.006]
[1739458460774,0.00593142,95971.0,95970.0,0.001]
[1739458460982,0.16222842,95971.0,95970.0,0.001]
[1739458461193,0.1563,95969.0,95968.0,5e-07]
[1739458461452,0.16221231,95969.0,95968.0,5e-07]
[1739458462289,0.00591231,95969.0,95968.0,5e-07]
[1739458462426,0.16221231,95969.0,95968.0,5e-07]
[1739458463040,0.16221231,95969.0,95968.0,0.0020005]
[1739458463468,0.16221231,95969.0,95968.0,5e-07]
[1739458463667,0.16221231,95969.0,95968.0,0.0020005]
[1739458463863,0.16221231,95969.0,95968.0,5e-07]
[1739458464069,0.00591231,95969.0,95968.0,0.0030005]
[1739458464295,0.16221231,95969.0,95968.0,0.0050005]
[1739458464501,0.1563,95969.0,95968.0,0.0050005]
[1739458464705,0.21048779,95969.0,95968.0,0.0020005]
[1739458464901,0.21048779,95969.0,95968.0,0.0050005]
[1739458465541,0.21048779,95969.0,95968.0,0.0030005]
[1739458465867,0.21048779,95969.0,95968.0,0.0020005]
[1739458466223,0.21048779,95969.0,95968.0,5e-07]
[1739458466432,0.21048779,95969.0,95968.0,0.0020005]
[1739458466951,0.53989144,95969.0,95968.0,0.0020005]
[1739458467153,0.53989144,95969.0,95968.0,0.0050005]
[1739458467491,0.56289144,95969.0,95968.0,0.0050005]
[1739458467654,0.56289144,95969.0,95968.0,0.0020005]
[1739458468033,0.56289144,95969.0,95968.0,0.0050005]
[1739458468639,0.56289144,95969.0,95968.0,0.0030005]
[1739458469023,0.56289144,95969.0,95968.0,5e-07]
[1739458469429,1.10489144,95969.0,95968.0,0.0010005]
[1739458469639,0.306336,95947.0,95946.0,0.0001065]
[1739458469841,0.56523732,95947.0,95946.0,0.0001065]
[1739458470060,1.10723732,95947.0,95946.0,0.0001065]
[1739458470927,1.10723732,95947.0,95946.0,0.00023796]
[1739458471376,1.12110792,95947.0,95946.0,0.00023796]
[1739458472112,1.12610792,95947.0,95946.0,0.00023796]
[1739458476015,1.12110792,95947.0,95946.0,0.00023796]
[1739458476219,1.12610792,95947.0,95946.0,0.00023796]
[1739458476629,1.06920812,95947.0,95946.0,9.6e-07]
[1739458478588,1.06420812,95947.0,95946.0,9.6e-07]
[1739458478995,1.06820812,95947.0,95946.0,9.6e-07]
[1739458479525,1.07320812,95947.0,95946.0,9.6e-07]
[1739458479729,0.52220812,95947.0,95946.0,9.6e-07]
[1739458479879,1.06420812,95947.0,95946.0,9.6e-07]
[1739458480082,1.06820812,95947.0,95946.0,9.6e-07]
[1739458480280,0.52220812,95947.0,95946.0,9.6e-07]
[1739458481556,1.07196477,95947.0,95946.0,9.6e-07]
[1739458482072,0.53396477,95947.0,95946.0,9.6e-07]
[1739458482325,0.17389032,95947.0,95946.0,9.6e-07]
[1739458482572,0.16989032,95947.0,95946.0,9.6e-07]
[1739458482806,0.01755432,95947.0,95946.0,9.6e-07]
[1739458483065,0.01755432,95947.0,95946.0,0.15633796]
[1739458483066,0.00979767,95947.0,95946.0,0.15633796]
[1739458483286,0.008,95947.0,95946.0,9.6e-07]
[1739458483526,0.164336,95947.0,95946.0,9.6e-07]
[1739458483732,0.16197851,95947.0,95946.0,9.6e-07]
[1739458483970,0.16197851,95947.0,95946.0,0.00100096]
[1739458484208,0.16197851,95947.0,95946.0,0.00300096]
[1739458484465,0.16197851,95947.0,95946.0,0.00100096]
[1739458484939,0.16197851,95947.0,95946.0,0.00500096]
[1739458485169,0.16197851,95947.0,95946.0,0.00400096]
[1739458485621,0.16197851,95947.0,95946.0,0.00700096]
[1739458485851,0.16197851,95947.0,95946.0,0.00400096]
[1739458486084,0.39478216,95947.0,95946.0,0.00400096]
[1739458486313,0.93778216,95947.0,95946.0,0.00400096]
[1739458486562,0.39478216,95947.0,95946.0,9.6e-07]
[1739458486781,0.39478216,95947.0,95946.0,0.00100096]
[1739458487032,0.16197851,95947.0,95946.0,0.00300096]
[1739458487463,0.00564251,95947.0,95946.0,9.6e-07]
[1739458487930,0.156336,95947.0,95946.0,9.6e-07]
[1739458488155,0.16197168,95947.0,95946.0,9.6e-07]
[1739458488375,0.00763568,95947.0,95946.0,9.6e-07]
[1739458488620,0.00763568,95947.0,95946.0,0.00100096]
[1739458488802,0.00563568,95947.0,95946.0,0.00100096]
[1739458488971,0.00563568,95947.0,95946.0,0.00200096]
[1739458489179,0.156336,95947.0,95946.0,0.00200096]
[1739458489372,0.00563568,95947.0,95946.0,0.00100096]
[1739458489603,0.208431,95955.0,95946.0,0.00210746]
[1739458489854,0.00563568,95947.0,95946.0,0.00010746]
[1739458490054,0.00022366,95956.0,95946.0,0.00210746]
[1739458490274,0.00566639,95947.0,95946.0,0.00510746]
[1739458490423,0.156333,95949.0,95946.0,0.00510746]
[1739458490625,0.00566639,95947.0,95946.0,0.15944446]
[1739458490832,0.00022366,95956.0,95955.0,0.156323]
[1739458491938,0.00022366,95956.0,95954.0,0.156324]
[1739458492172,0.00022366,95956.0,95948.0,0.208445]
[1739458492373,0.00022366,95956.0,95946.0,0.00310746]
[1739458492576,0.15654466,95956.0,95948.0,0.156333]
[1739458492824,0.15654466,95956.0,95946.0,0.00310746]
[1739458492825,0.00571312,95955.0,95946.0,0.00310746]
[1739458493136,0.00022366,95956.0,95955.0,0.156323]
[1739458493343,0.00022366,95956.0,95955.0,0.159323]
[1739458493491,0.00022366,95956.0,95955.0,0.003]
[1739458493903,0.00593678,95956.0,95951.0,0.156328]
[1739458494099,0.00022366,95956.0,95951.0,0.156328]
[1739458494329,0.00571312,95955.0,95951.0,0.156328]
[1739458494502,0.00571312,95955.0,95952.0,0.208435]
[1739458494706,0.00571312,95955.0,95954.0,0.156324]
[1739458494908,0.00022366,95956.0,95946.0,0.00010746]
[1739458495063,0.00022366,95956.0,95955.0,0.156323]
[1739458495270,0.00022366,95956.0,95951.0,0.014]
[1739458495633,0.00022366,95956.0,95951.0,0.007]
[1739458495835,0.00022366,95956.0,95955.0,0.156323]
[1739458496452,0.00022366,95956.0,95955.0,0.25882665]
[1739458497319,0.00022366,95956.0,95955.0,0.26582665]
[1739458497921,0.00022366,95956.0,95955.0,0.25882665]
[1739458498150,0.00022366,95956.0,95955.0,0.26582665]
[1739458498783,0.00022366,95956.0,95955.0,0.014]
[1739458498983,0.00607605,95956.0,95955.0,0.014]
[1739458499241,0.00022366,95956.0,95955.0,0.014]
[1739458499681,0.00607485,95956.0,95955.0,0.014]
[1739458499854,0.00607485,95956.0,95955.0,0.163323]
[1739458500074,0.00022366,95956.0,95955.0,0.163323]
[1739458500478,0.00022366,95956.0,95955.0,0.170323]
[1739458500633,0.00022366,95956.0,95955.0,0.007]
[1739458500838,0.16239585,95956.0,95955.0,0.007]
[1739458501251,0.16239585,95956.0,95946.0,0.00010746]